[Event "Superbet Rapid Poland 2022"]
[Site "Warsaw"]
[Date "2022.05.20"]
[Round "6.3"]
[White "So, Wesley"]
[Black "Gavrilescu, David"]
[Result "1/2-1/2"]
[ECO "B14"]
[WhiteElo "2766"]
[BlackElo "2518"]
[Annotator "TA"]
[PlyCount "130"]
[EventDate "2022.05.19"]
[EventType "tourn"]
[EventCountry "POL"]
[SourceTitle "playchess.com"]
[Source "ChessBase"]
[SourceQuality "1"]
[TimeControl "1500+10"]

{[%evp 19,130,22,34,28,23,26,29,17,36,22,28,16,19,11,11,10,18,-1,0,0,-13,-27,-28,-29,-14,-85,0,-106,-104,-148,-102,-105,-105,-106,-91,-136,-120,-116,-126,-125,-47,-89,-83,-77,-72,-72,-72,-69,-62,-52,-38,-45,-45,-45,-39,-42,-39,-45,-43,-41,-33,-66,-62,-76,-76,-75,-60,-64,-35,-42,-24,-34,-42,-36,-8,-11,-12,-13,-10,-11,-12,-22,-22,-29,-2,-9,0,0,0,0,0,0,0,0,0,0,0,0,0,0,0,0,0,0,0,0,0,0,0,0,0,0,0]} 1. c4 {[%emt 0:00:03]} e6 {[%emt 0:00:12]} 2. Nf3 {[%emt 0:00:05]} d5 {[%emt 0:00:04]} 3. e3 {[%emt 0:00:04]} Nf6 {[%emt 0:00:06]} 4. Nc3 {[%emt 0:00:02]} c5 {[%emt 0:01:00]} 5. cxd5 {[%emt 0:00:10]} exd5 {[%emt 0:00:04]} 6. Bb5+ {[%emt 0:00:20]} Nc6 {[%emt 0:00:38]} 7. d4 {[%emt 0:00:04]} cxd4 {[%emt 0:00:09]} 8. exd4 {[%emt 0:00:11]} Be7 {[%emt 0:01:48]} 9. O-O $1 {[%emt 0:00:09][%mdl 4] is now more promising than 9.Ne5.} O-O {[%emt 0:00:27]} 10. Ne5 {[%emt 0:00:20]} Bd7 {[%emt 0:01:28]} 11. Re1 {[%emt 0:00:15] B14: Caro-Kann: Panov-Botvinnik Attack with 5...e6 and 5...g6.} h6 {[%emt 0:01:57]} 12. Bf4 {[%emt 0:01:45] [#]} Re8 $146 {[%emt 0:00:45]} ({Predecessor:} 12... Rc8 13. Re3 a6 14. Be2 Bb4 15. Rc1 Be6 16. Rg3 Kh8 17. a3 Bxc3 18. Rgxc3 Ne7 {1-0 (38) Salinas Herrera,P (2514)-Homa,S (2269) Philadelphia 2021}) 13. a3 {[%emt 0:02:41] White has an edge.} Rc8 {[%emt 0:01:28]} 14. h3 {[%emt 0:00:11]} a6 {[%emt 0:00:34]} 15. Bxc6 {[%emt 0:02:28]} Bxc6 {[%emt 0:00:10]} 16. Re3 {[%emt 0:00:01]} Bd6 {[%emt 0:07:07]} 17. Rg3 {[%emt 0:01:16] With the idea Bxh6.} Kf8 $1 {[%emt 0:00:15]} 18. Qd3 {[%emt 0:05:11][%cal Oe5f7]} Ne4 {[%emt 0:02:36]} 19. Nxe4 {[%emt 0:01:37]} dxe4 {[%emt 0:00:05]} 20. Qe2 {[%emt 0:00:02][%cal Oe5f7]} Qf6 {[%emt 0:01:08]} 21. Bd2 {[%emt 0:00:55]} Qf5 {[%emt 0:01:30]} 22. Rg4 {[%emt 0:00:26] [#]} (22. Bb4 $11 Bxb4 23. axb4) 22... Bb5 {[%emt 0:01:21]} (22... Bxe5 $6 23. dxe5 Red8 24. Bc3 $11) (22... f6 $1 $17 {[%cal Rf6e5]} 23. Nc4 Bb8) 23. Qe3 {[%emt 0:02:10] [#]} (23. Qxe4 $11 Qxe4 24. Rxe4) 23... g5 $1 $17 {[%emt 0:00:26] aiming for ...f6.} ({Much worse is} 23... Bxe5 $6 24. dxe5 Rc2 25. Qb3 $11) 24. Qg3 {[%emt 0:04:07]} (24. Qxe4 Qxe4 25. Rxe4 f6) 24... Bxe5 {[%emt 0:01:29]} (24... Rc2 $142 25. Bxg5 hxg5 26. Rxg5 Qh7) 25. dxe5 {[%emt 0:00:00]} Qxe5 {[%emt 0:00:09]} 26. Qb3 {[%emt 0:01:29]} Rcd8 {[%emt 0:00:33]} 27. Bc3 {[%emt 0:00:19]} Qe6 {[%emt 0:00:27]} 28. Qb4+ {[%emt 0:00:00]} Kg8 {[%emt 0:00:01] And now ...f5 would win.} 29. Rg3 {[%emt 0:00:03]} Qc4 {[%emt 0:00:29]} ({Better is} 29... f5 $17 {Strongly threatening ...f4.} 30. f4 exf3 31. Rxf3 f4) 30. Qa5 {[%emt 0:00:44]} Rd6 {[%emt 0:00:20]} 31. a4 {[%emt 0:00:01]} Bd7 {[%emt 0:00:22]} 32. h4 {[%emt 0:00:38]} b6 {[%emt 0:00:02]} 33. Qb4 {[%emt 0:00:47]} Qxb4 {[%emt 0:00:01]} 34. Bxb4 {[%emt 0:00:00]} Rd3 {[%emt 0:00:04]} 35. Rxd3 {[%emt 0:00:17]} exd3 {[%emt 0:00:01]} 36. hxg5 {[%emt 0:00:01]} hxg5 $15 {[%emt 0:00:02][%cal Od7a4][%mdl 4096] Endgame KRB-KRB} 37. Rd1 {[%emt 0:00:10]} Bf5 {[%emt 0:00:10]} 38. a5 {[%emt 0:00:18]} b5 {[%emt 0:00:44]} 39. f3 {[%emt 0:00:21]} f6 {[%emt 0:00:09]} 40. Bd2 {[%emt 0:00:39]} Re2 {[%emt 0:00:14]} 41. Bc3 {[%emt 0:00:01]} Kf7 {[%emt 0:00:03]} 42. Rd2 {[%emt 0:00:09]} Re6 {[%emt 0:00:27]} 43. Kf2 {[%emt 0:00:06]} Rc6 {[%emt 0:00:04]} 44. Ke3 {[%emt 0:00:16]} Rc4 {[%emt 0:00:03]} 45. Rd1 {[%emt 0:00:05]} b4 {[%emt 0:00:06]} 46. Bd2 {[%emt 0:00:11]} Ke6 {[%emt 0:00:53]} 47. g4 {[%emt 0:00:19]} Bg6 {[%emt 0:00:01]} 48. b3 {[%emt 0:00:19]} Rc5 {[%emt 0:00:12]} 49. Bxb4 {[%emt 0:00:11]} Rb5 {[%emt 0:00:01]} 50. Bd2 {[%emt 0:00:07]} Rxb3 {[%emt 0:00:05]} 51. Rc1 {[%emt 0:00:01]} Kd7 {[%emt 0:00:03] Prevents Rc6.} 52. Bc3 {[%emt 0:00:10] The position is equal.} f5 {[%emt 0:00:23]} 53. gxf5 {[%emt 0:00:05]} Bxf5 {[%emt 0:00:01]} 54. Bd2 {[%emt 0:00:06]} g4 {[%emt 0:00:14]} 55. Kf4 {[%emt 0:00:20]} Be6 {[%emt 0:00:11]} 56. fxg4 {[%emt 0:00:02]} Rb2 {[%emt 0:00:01]} 57. Ke3 {[%emt 0:00:05]} Bxg4 {[%emt 0:00:03]} (57... Rb5 {seems wilder.} 58. Rg1 Rg5 59. Kf4 Rxg4+ 60. Rxg4 Bxg4 61. Kxg4 Kc6) 58. Kxd3 {[%emt 0:00:02]} Rb3+ {[%emt 0:00:09]} 59. Rc3 {[%emt 0:00:01]} Rxc3+ {[%emt 0:00:01]} 60. Bxc3 $11 {[%emt 0:00:02] KB-KB} Kc6 {[%emt 0:00:02]} 61. Bd2 {[%emt 0:00:01]} Bf5+ {[%emt 0:00:03]} 62. Kd4 {[%emt 0:00:01]} Bg4 {[%emt 0:00:01]} 63. Bc3 {[%emt 0:00:01]} Be6 {[%emt 0:00:01]} 64. Bd2 {[%emt 0:00:00]} Bg4 {[%emt 0:00:01]} 65. Bc3 {[%emt 0:00:01]} Be6 {[%emt 0:00:01] Weighted Error Value: White=0.12 (very precise) /Black=0.08 (flawless)} 1/2-1/2

[Event "Superbet Rapid Poland 2022"]
[Site "Warsaw"]
[Date "2022.05.20"]
[Round "6.4"]
[White "Anand, Viswanathan"]
[Black "Duda, Jan-Krzysztof"]
[Result "1/2-1/2"]
[ECO "C02"]
[WhiteElo "2751"]
[BlackElo "2750"]
[Annotator "TA"]
[PlyCount "101"]
[EventDate "2022.05.19"]
[EventType "tourn"]
[EventCountry "POL"]
[SourceTitle "playchess.com"]
[Source "ChessBase"]
[SourceQuality "1"]
[TimeControl "1500+10"]

{[%evp 15,101,0,0,-49,-47,-41,-42,-49,-37,-40,-39,-44,-47,-44,-49,-34,-8,-16,-10,-14,0,0,0,-18,0,0,0,0,-10,-14,0,0,0,0,0,0,0,0,0,0,0,-9,0,-28,0,0,0,8,31,0,0,0,0,0,0,0,0,0,0,0,0,0,0,-236,0,0,104,0,0,0,0,0,0,0,0,0,0,0,0,0,0,0,0,0,0,0,0,0]} 1. e4 {[%emt 0:00:02]} e6 {[%emt 0:00:01]} 2. d4 {[%emt 0:00:10]} d5 {[%emt 0:00:02]} 3. e5 {[%emt 0:00:02]} c5 {[%emt 0:00:02]} 4. c3 {[%emt 0:00:02]} Nc6 {[%emt 0:00:13]} 5. Nf3 {[%emt 0:00:02]} Qb6 {[%emt 0:00:06]} 6. a3 {[%emt 0:00:07]} c4 {[%emt 0:00:37]} 7. Nbd2 {[%emt 0:00:13]} Na5 {[%emt 0:00:04]} 8. Rb1 {[%emt 0:02:45]} Bd7 {[%emt 0:00:03][%cal Bc8d7,Bd7a4,Ba4d1][%mdl 32]} 9. b4 {[%emt 0:00:31] C02: French: Advance Variation.} (9. h4 $11 {feels stronger.}) 9... cxb3 $1 $15 {[%emt 0:00:03]} 10. Nxb3 {[%emt 0:00:03]} Ba4 {[%emt 0:00:27][%cal Ra4b3]} 11. Nxa5 $1 {[%emt 0:00:12][%mdl 4] Black is slightly better. now scores much better than the old 11.Nfd2.} Bxd1 {[%emt 0:00:28]} 12. Rxb6 {[%emt 0:00:03]} axb6 {[%emt 0:00:02]} 13. Bb5+ {[%emt 0:00:03]} Ke7 {[%emt 0:00:04]} 14. Kxd1 {[%emt 0:00:08]} bxa5 {[%emt 0:00:57]} 15. a4 {[%emt 0:01:07]} f6 {[%emt 0:00:05] [#]} 16. g4 $146 {[%emt 0:02:06]} ({Predecessor:} 16. Re1 Kf7 17. c4 Bb4 18. Re2 Ne7 19. Bd7 Ra6 20. c5 Rd8 21. Bb5 Raa8 22. g4 {0-1 (48) McGettigan,A (1930)-Alizada,E (1924) London 2019}) 16... Kf7 {[%emt 0:01:58]} 17. g5 {[%emt 0:04:26]} h6 {[%emt 0:05:06]} 18. gxf6 {[%emt 0:00:23]} gxf6 {[%emt 0:00:03]} 19. Rg1 {[%emt 0:06:24] [#] Hoping for exf6.} Bg7 {[%emt 0:02:54]} 20. Ba3 {[%emt 0:01:33]} fxe5 {[%emt 0:01:56]} 21. dxe5 {[%emt 0:01:56]} Bf8 {[%emt 0:01:18]} 22. Bxf8 {[%emt 0:01:05]} Rxf8 {[%emt 0:00:02]} 23. Nd4 {[%emt 0:00:05]} h5 {[%emt 0:00:38]} 24. Ke2 {[%emt 0:00:50]} Rh6 {[%emt 0:07:11]} 25. Bd7 {[%emt 0:00:50]} Ke7 {[%emt 0:01:13]} 26. Bb5 {[%emt 0:02:08] [#] Threatens to win with Rg7+.} Kd8 {[%emt 0:00:56]} 27. f4 {[%emt 0:01:15]} Ne7 {[%emt 0:00:07]} 28. Ke3 {[%emt 0:00:05]} h4 {[%emt 0:00:59]} 29. h3 {[%emt 0:00:04]} Nf5+ {[%emt 0:00:22]} (29... Rg8 $5 {[%cal Rg8g1]} 30. Rg5 Kc8 $11) 30. Nxf5 {[%emt 0:00:03]} Rxf5 $11 {[%emt 0:00:03][%mdl 4096] Endgame KRR-KRB} (30... exf5 31. Rg7 $16) 31. Rg7 {[%emt 0:00:20] Prevents Rf7.} Rh8 {[%emt 0:00:16]} 32. Rxb7 {[%emt 0:00:19] Black must now prevent Rb8+.} (32. Bd3 $5 {[%cal Rd3f5]} Rff8 33. f5 exf5 34. Rxb7 $11) 32... Rhf8 {[%emt 0:00:03]} 33. Rd7+ {[%emt 0:00:19]} Kc8 {[%emt 0:00:03]} 34. Kd4 $1 {[%emt 0:00:14]} R8f7 {[%emt 0:02:00]} 35. Rd6 $1 {[%emt 0:00:06]} Rxf4+ {[%emt 0:00:21]} 36. Kc5 {[%emt 0:00:01]} Rf3 {[%emt 0:00:08][%csl LRc3,LRh3]} 37. Rxe6 {[%emt 0:00:14]} Rxc3+ {[%emt 0:00:09]} 38. Kd6 {[%emt 0:00:06]} d4 {[%emt 0:00:16] Strongly threatening ...d3.} 39. Re8+ {[%emt 0:00:10]} Kb7 {[%emt 0:00:01] ...d3 is the strong threat.} 40. e6 {[%emt 0:00:01]} Rfc7 {[%emt 0:00:14]} (40... Rf6 $11 {keeps the balance.}) 41. Rd8 {[%emt 0:00:25]} (41. Rh8 $16) 41... d3 {[%emt 0:00:09] And now ...d2 would win. The position is equal.} (41... Rxh3 $2 42. Rd7 (42. Ba6+ Kb6 $11) 42... Rg3 43. Rxc7+ $18) 42. Ke5 {[%emt 0:00:09]} d2 {[%emt 0:00:12]} 43. Rxd2 {[%emt 0:00:03] aiming for Kd6.} Rxh3 {[%emt 0:00:02]} 44. Kd6 {[%emt 0:00:04]} ({Not} 44. Rd7 $2 Rxd7 45. Bxd7 Kc7 $19) 44... Re3 {[%emt 0:00:07]} 45. Rb2 {[%emt 0:00:31] Threatening mate with Bc6+.} Rg7 {[%emt 0:00:11]} 46. Re2 {[%emt 0:00:24]} Rxe2 $1 {[%emt 0:00:19]} 47. Bxe2 {[%emt 0:00:01]} h3 {[%emt 0:00:17]} 48. e7 {[%emt 0:00:04]} ({Wrong is} 48. Bf3+ $2 Kc8 49. Bc6 Kd8 $19) 48... Rg8 {[%emt 0:00:08]} 49. Kd7 {[%emt 0:00:10]} Kb6 {[%emt 0:00:07]} 50. e8=Q {[%emt 0:00:06]} Rxe8 {[%emt 0:00:02]} 51. Kxe8 {[%emt 0:00:01] Weighted Error Value: White=0.05 (flawless) /Black=0.09 (flawless)} 1/2-1/2

[Event "Superbet Rapid Poland 2022"]
[Site "Warsaw"]
[Date "2022.05.20"]
[Round "6.5"]
[White "Shevchenko, Kirill"]
[Black "Aronian, Levon"]
[Result "1/2-1/2"]
[ECO "C77"]
[WhiteElo "2644"]
[BlackElo "2765"]
[Annotator "TA"]
[PlyCount "85"]
[EventDate "2022.05.19"]
[EventType "tourn"]
[EventCountry "POL"]
[SourceTitle "playchess.com"]
[Source "ChessBase"]
[SourceQuality "1"]
[TimeControl "1500+10"]

{[%evp 11,85,37,27,28,35,30,31,29,27,11,30,-29,0,-11,-12,-13,-14,-11,0,-10,21,-27,15,16,24,22,23,25,32,39,33,20,36,26,27,37,33,33,38,11,27,25,34,13,15,0,0,0,0,0,22,0,0,0,0,0,0,0,0,0,0,0,0,0,0,0,0,0,0,0,0,0,0,0,0,0]} 1. e4 {[%emt 0:00:02]} e5 {[%emt 0:00:03]} 2. Nf3 {[%emt 0:00:02]} Nc6 {[%emt 0:00:02]} 3. Bb5 {[%emt 0:00:03]} a6 {[%emt 0:00:02]} 4. Ba4 {[%emt 0:00:02]} Nf6 {[%emt 0:00:02]} 5. Nc3 {[%emt 0:00:08]} d6 {[%emt 0:00:42]} 6. Bxc6+ {[%emt 0:00:29]} bxc6 {[%emt 0:00:02]} 7. d4 {[%emt 0:00:02] C77: Ruy Lopez: 3...a6 4 Ba4 Nf6, unusual lines.} Nd7 {[%emt 0:00:02]} 8. O-O {[%emt 0:00:42]} a5 {[%emt 0:00:13]} 9. b3 {[%emt 0:03:10] White is slightly better.} Be7 {[%emt 0:00:05] [#]} 10. Re1 $146 {[%emt 0:02:14]} ({Predecessor:} 10. Bb2 Bf6 11. dxe5 dxe5 12. Na4 O-O 13. Qd2 Qe7 14. Rfd1 Re8 15. Qc3 Qe6 16. h3 {0-1 (43) Enoch,D-Johner,P Berlin 1929}) 10... O-O {[%emt 0:00:09]} 11. Ba3 {[%emt 0:00:45]} (11. dxe5 $142 Nxe5 12. Nxe5 dxe5 13. Qf3) 11... f6 {[%emt 0:00:21]} 12. Na4 {[%emt 0:01:22]} Nb6 {[%emt 0:01:05]} 13. Nxb6 {[%emt 0:03:02]} cxb6 {[%emt 0:00:02]} 14. c4 {[%emt 0:00:01]} Qe8 {[%emt 0:01:56]} 15. Qd3 {[%emt 0:00:55]} Kh8 {[%emt 0:00:20]} 16. Rad1 {[%emt 0:00:55]} (16. Nd2 {feels stronger.}) 16... Bg4 {[%emt 0:01:21]} 17. h3 {[%emt 0:00:07]} Bh5 {[%emt 0:00:02]} 18. g4 {[%emt 0:02:43]} Bf7 {[%emt 0:00:15]} 19. Nh4 {[%emt 0:00:51]} g6 {[%emt 0:00:19]} 20. Ng2 {[%emt 0:00:31]} Rd8 {[%emt 0:02:13]} 21. f4 {[%emt 0:01:02]} b5 {[%emt 0:02:58]} 22. cxb5 {[%emt 0:02:37]} cxb5 {[%emt 0:00:03]} 23. Bb2 {[%emt 0:00:01]} Qc6 {[%emt 0:00:04]} 24. d5 {[%emt 0:01:08]} Qb6+ {[%emt 0:01:00]} 25. Kh1 {[%emt 0:00:07][%cal Og4g5]} Rc8 {[%emt 0:00:38]} 26. Rf1 $1 {[%emt 0:00:51][%cal Og4g5]} Be8 {[%emt 0:01:00][%cal Bf7e8,Be8d7,Bd7h3][%mdl 32]} 27. g5 {[%emt 0:01:23] [#] aiming for gxf6.} Bd7 {[%emt 0:00:01] The position is equal.} 28. Qg3 {[%emt 0:01:35]} Kg8 $1 {[%emt 0:02:36]} (28... Rc2 $2 29. gxf6 Rxf6 30. fxe5 Rxf1+ 31. Rxf1 Rxb2 32. exd6 Rxg2 33. Kxg2 (33. Qe5+ Kg8 $16) 33... Bxd6 34. Rf6 $18) 29. gxf6 {[%emt 0:01:10]} Bxf6 {[%emt 0:00:07] Strongly threatening ...exf4.} 30. fxe5 {[%emt 0:00:02]} dxe5 {[%emt 0:00:14]} 31. Bxe5 {[%emt 0:00:33]} (31. Kh2 $5 {[%cal Rb2e5]}) 31... Bxe5 {[%emt 0:01:14]} 32. Qxe5 {[%emt 0:00:04]} Bxh3 {[%emt 0:00:22] [#] Threatens to win with ...Rf2.} 33. d6 {[%emt 0:00:23]} Rf2 {[%emt 0:02:27]} 34. Nf4 {[%emt 0:01:23] Really sharp!} Bg4 {[%emt 0:02:32]} (34... Rxf1+ $2 35. Rxf1 Qe3 36. d7 (36. Ne6 $2 Bg2+ 37. Kh2 Qh3+ 38. Kg1 Qh1+ 39. Kf2 Qxf1+ $19) 36... Bxd7 37. Qd5+ Kh8 38. Qxd7 $18) 35. Qd5+ {[%emt 0:00:13]} Kg7 {[%emt 0:00:13] ( -> ...Bf3+)} 36. Ne6+ {[%emt 0:00:09]} Bxe6 {[%emt 0:00:21]} 37. Qxe6 {[%emt 0:00:06] Qd7+ is the strong threat.} Rcf8 {[%emt 0:02:33]} 38. Qe5+ {[%emt 0:00:01]} Kg8 {[%emt 0:00:44]} 39. Qd5+ {[%emt 0:00:06]} Kg7 {[%emt 0:00:02]} 40. Qe5+ {[%emt 0:00:28]} Kg8 {[%emt 0:00:03]} 41. Qd5+ {[%emt 0:00:09]} Kg7 {[%emt 0:00:02]} 42. Qe5+ {[%emt 0:00:11]} Kg8 {[%emt 0:00:03]} 43. Qe6+ {[%emt 0:00:04] Weighted Error Value: White=0.09 (flawless) /Black=0.05 (flawless)} 1/2-1/2

[Event "Superbet Rapid Poland 2022"]
[Site "Warsaw"]
[Date "2022.05.21"]
[Round "7.1"]
[White "Aronian, Levon"]
[Black "Korobov, Anton"]
[Result "1-0"]
[ECO "B50"]
[WhiteElo "2765"]
[BlackElo "2671"]
[Annotator "TA"]
[PlyCount "83"]
[EventDate "2022.05.19"]
[EventType "tourn"]
[EventCountry "POL"]
[SourceTitle "playchess.com"]
[Source "ChessBase"]
[SourceQuality "1"]
[TimeControl "1500+10"]

{[%evp 9,83,0,-5,-13,0,-17,-10,-22,0,0,0,0,0,-10,0,-12,27,35,28,30,27,27,24,24,29,20,21,27,22,27,34,29,32,0,0,-10,-6,-8,-6,-11,-11,-6,-8,-14,0,0,0,0,38,13,29,0,148,146,152,127,168,167,154,151,155,146,164,109,211,221,187,107,639,632,618,613,596,589,553,533]} 1. e4 {[%emt 0:00:02]} c5 {[%emt 0:00:03]} 2. Nf3 {[%emt 0:00:02]} d6 {[%emt 0:00:02]} 3. Bc4 {[%emt 0:00:02]} Nf6 {[%emt 0:00:07]} 4. d3 {[%emt 0:00:01]} e6 {[%emt 0:00:08]} 5. a4 {[%emt 0:00:12]} Be7 {[%emt 0:00:08]} 6. O-O {[%emt 0:00:03] B50: Sicilian: 2...d6, Miscellaneous.} O-O {[%emt 0:00:05]} 7. Nbd2 {[%emt 0:00:03]} Nc6 {[%emt 0:00:21]} 8. Re1 {[%emt 0:00:03] The position is equal.} a6 {[%emt 0:02:21]} 9. c3 {[%emt 0:00:15]} Rb8 {[%emt 0:01:19]} 10. Bb3 {[%emt 0:00:32]} b5 {[%emt 0:00:18]} 11. axb5 {[%emt 0:00:02]} axb5 {[%emt 0:00:01]} 12. d4 {[%emt 0:00:02] [#]} b4 $146 {[%emt 0:02:00]} ({Predecessor:} 12... Qc7 13. dxc5 dxc5 14. Nf1 Bb7 15. e5 Rfd8 16. Qe2 Nd7 17. Bc2 c4 18. Bf4 Nf8 {1-0 (37) Jurakic,L (1990)-Dabic,S (2102) Vinkovci 2019}) 13. dxc5 {[%emt 0:01:22]} bxc3 {[%emt 0:00:13]} 14. bxc3 {[%emt 0:00:02] Threatens to win with cxd6.} dxc5 {[%emt 0:00:15]} 15. Nc4 {[%emt 0:00:45]} Qxd1 {[%emt 0:05:43]} 16. Bxd1 {[%emt 0:00:03]} Bb7 {[%emt 0:00:05]} 17. Bf4 {[%emt 0:01:20]} Ra8 {[%emt 0:00:03]} 18. Rb1 {[%emt 0:00:19]} Ra7 {[%emt 0:01:21]} 19. Nfd2 {[%emt 0:00:29]} Rd8 {[%emt 0:00:37]} 20. f3 {[%emt 0:00:18]} h6 {[%emt 0:00:35]} 21. Be2 {[%emt 0:01:42]} g5 {[%emt 0:01:15]} 22. Bg3 {[%emt 0:02:35]} Nh5 {[%emt 0:00:49]} 23. Bf2 {[%emt 0:00:02]} Nf4 {[%emt 0:00:15]} 24. Bf1 {[%emt 0:00:01]} Nd3 {[%emt 0:00:30]} 25. Bxd3 {[%emt 0:00:02]} Rxd3 {[%emt 0:00:02]} 26. Rec1 {[%emt 0:00:02] [#]} Ne5 $1 {[%emt 0:02:32]} 27. h3 {[%emt 0:01:07]} Nxc4 {[%emt 0:01:20]} 28. Nxc4 {[%emt 0:00:02]} f6 {[%emt 0:00:28]} 29. Rb6 {[%emt 0:01:09]} Kf7 {[%emt 0:00:16]} 30. Bg3 {[%emt 0:01:44] aiming for Bb8.} Bxe4 {[%emt 0:02:35] [#]} 31. Bb8 $1 $16 {[%emt 0:03:05]} Ra4 {[%emt 0:01:26]} 32. Nb2 {[%emt 0:00:02][%mdl 64] Deflection, Double Attack} Ra2 {[%emt 0:00:02][%cal Od3d2] White must now prevent ...Rd2!} 33. fxe4 {[%emt 0:01:00]} Rd2 {[%emt 0:00:01]} 34. Rb1 {[%emt 0:00:02]} e5 {[%emt 0:00:25]} 35. Rb7 {[%emt 0:00:48][%cal Ob7a7]} Ke6 {[%emt 0:00:32] [#]} 36. Kh1 {[%emt 0:00:06]} ({Worse is} 36. Nc4 Rxg2+ 37. Kh1 (37. Kf1 Rgf2+ 38. Kg1 Rg2+ 39. Kh1 Rh2+ 40. Kg1 Rhg2+ $11) 37... Rh2+ 38. Kg1 Rhg2+ 39. Kh1 (39. Kf1 Rgf2+ 40. Kg1 Rg2+ $11) 39... Rh2+ 40. Kg1 Rhg2+ $11) (36. Kf1 $1 $18) 36... h5 {[%emt 0:00:12]} (36... Re2 $16 {is a better defense.} 37. Nc4 Rxg2) 37. Nc4 $18 {[%emt 0:01:58]} Rxg2 {[%emt 0:00:17]} 38. Bxe5 {[%emt 0:00:39]} (38. R1b6+ $18 Kf7 39. Nxe5+ fxe5 40. Bd6 (40. Bxe5 Rgd2 $15) 40... Rh2+ 41. Kg1 Rhg2+ 42. Kh1 Rh2+ 43. Kg1 Rhg2+ 44. Kf1 Rgf2+ 45. Ke1 Rfe2+ 46. Kf1 Rf2+ 47. Ke1 Rfe2+ 48. Kd1 Red2+ 49. Kc1 Rac2+ 50. Kb1 Rb2+ 51. Rxb2 Rxd6 52. Rc7) 38... fxe5 $4 {[%emt 0:01:08][%mdl 8192] A mistake that costs the game.} (38... Rgf2 $16) 39. R1b6+ {[%emt 0:00:02][%mdl 64] Deflection. White is clearly winning.} Kf7 {[%emt 0:00:02]} 40. Nxe5+ {[%emt 0:00:02]} Kg8 {[%emt 0:01:00]} 41. Rxe7 {[%emt 0:00:02][%cal Rb6b8]} ({Less strong is} 41. Rg6+ Kh8 $16) 41... Rh2+ {[%emt 0:00:15]} 42. Kg1 {[%emt 0:00:01] Weighted Error Value: White=0.09 (flawless) /Black=0.27 (precise)} 1-0